Cogmind - Beta 12 @@@ ROGUE MODE // 2023.03.29 @ 09:55:37 Player: wchar_t Result: Destroyed by S-10 Pest with Light Assault Rifle Performance ------------- Evolutions (0) 0 Regions Visited (1) 200 Robots Destroyed (0) 0 Value Destroyed (0) 0 Prototype IDs (0) 0 Alien Tech Used (0) 0 Bonus (0) 0 TOTAL SCORE: 200 Bonus ------- None Cogmind --------- Core Integrity 0/250 Matter 172/300 Energy 73/100 System Corruption 0% Temperature Cool (0) Movement Hovering (56) Location -10/Materials Parts ------- > --- POWER (1) -------- (None) > --- PROPULSION (2) --- Hover Unit Hover Unit > --- UTILITY (2) ------ (None) > --- WEAPON (2) ------- (None) > --- INVENTORY (5) ---- Hover Unit Peak State ------------ > --- POWER ------------ (None) > --- PROPULSION ------- Hover Unit Hover Unit > --- UTILITY ---------- (None) > --- WEAPON ----------- (None) > --- INVENTORY -------- (None) [Rating: 2] Favorites ----------- Power None Propulsion Hover Unit Hover Unit Hover Unit Utility Small Storage Unit Storage Small Storage Unit Weapon None Build | -11 -10 ------- Run | Jun Mat Slots Evolved . | . . Power . | . . Propulsion . | . . Utility . | . . Weapon . | . . Parts Attached 3 | 1 2 Power . | . . Engine . | . . Core . | . . Reactor . | . . Propulsion 2 | . 2 Treads . | . . Leg . | . . Wheel . | . . Hover 2 | . 2 Flight . | . . Utility 1 | 1 . Device . | . . Storage 1 | 1 . Processor . | . . Hackware . | . . Protection . | . . Artifact . | . . Weapon . | . . Energy Gun . | . . Energy Cannon . | . . Ballistic Gun . | . . Ballistic Cannon . | . . Launcher . | . . Special Weapon . | . . Impact Weapon . | . . Slashing Weapon . | . . Piercing Weapon . | . . Special Melee Weapon . | . . Unidentified Prototypes . | . . Parts Lost . | . . Power . | . . Propulsion . | . . Utility . | . . Weapon . | . . Highest Loss Streak . | . . To Critical Strikes . | . . Average Slot Usage (%) . | . . Naked Turns 96 | . 96 Heaviest Build . | . . Greatest Support 12 | 3 12 Greatest Overweight (x) . | . . Average Overweight (x) . | . . Largest Inventory Capacity 8 | 8 5 Average Capacity 5 | 5 5 Most Carried 1 | 1 . Average Carried . | . . Final Capacity 5 | 5 5 Final Carried 1 | . 1 Class Distribution -------------------- 100% | Mutant Dominant Class ---------------- Mutant | -10/Materials Resources | -11 -10 ----------- Run | Jun Mat Matter Collected 96 | 96 . Remotely . | . . Salvage Created . | . . Parts . | . . Haulers Intercepted . | . . Recyclers Shooed . | . . Parts Field Recycled . | . . Retrieved Matter . | . . Parts Self-Destructed . | . . Prevented . | . . Kills | -11 -10 ------- Run | Jun Mat Combat Hostiles Destroyed . | . . Classes Destroyed . | . . Best Kill Streak . | . . Combat Bots Only . | . . Max Kills in Single Turn . | . . Gunslinging . | . . Exploded . | . . Melee . | . . Uniques/NPCs Destroyed . | . . Combat | -11 -10 -------- Run | Jun Mat Damage Taken 250 | . 250 Core 250 | . 250 Absorbed by Shields . | . . Core Remaining (%) 100 | 100 . Volleys Fired . | . . Largest . | . . Hottest . | . . Shots Fired . | . . Gun . | . . Cannon . | . . Launcher . | . . Special . | . . Kinetic . | . . Thermal . | . . Explosive . | . . Electromagnetic . | . . Robot Hit Streak . | . . Robot Miss Streak . | . . Penetration Max . | . . Secondary Targets . | . . Shots Hit Robots . | . . Core Hits 1 | . 1 Critical Kills . | . . Critical Parts Destroyed . | . . Critical Strikes . | . . Melee Attacks . | . . Impact . | . . Slashing . | . . Piercing . | . . Sneak Attacks . | . . Combat Hostiles . | . . Follow-up Attacks . | . . Damage Inflicted 11 | . 11 Guns . | . . Cannons . | . . Explosions . | . . Melee . | . . Ramming 11 | . 11 Kinetic . | . . Thermal . | . . Explosive . | . . Electromagnetic . | . . Impact . | . . Slashing . | . . Piercing . | . . Highest Corruption . | . . Average Corruption . | . . Corruption Purged . | . . Corruption Blocked . | . . Overload Shots . | . . Overflow Damage . | . . Projectiles . | . . Explosions . | . . Melee . | . . Knockbacks 1 | . 1 Impact 1 | . 1 Kinetic . | . . Secondary . | . . Self-Inflicted Damage 5 | . 5 Shots . | . . Rammed 2 | . 2 Targets Rammed 2 | . 2 Kicked . | . . Crushed . | . . Highest Temperature . | . . Average Temperature . | . . Received Heat Transfer 6 | . 6 Siege Activations . | . . Robots Corrupted . | . . Combat Hostiles . | . . Parts Fried . | . . Impact Corruptions . | . . Robots Melted . | . . Combat Hostiles . | . . Parts Melted . | . . Heat Transferred . | . . Parts Sabotaged . | . . Parts Stolen . | . . Parts Stripped . | . . Power Chain Reactions . | . . Missiles Intercepted . | . . Alert | -11 -10 ------- Run | Jun Mat Peak Influence 120 | . 120 Initial . | . . Average 32 | . 37 Maximum Alert Level . | . . Low Security (%) 100 | 100 100 Level 1 . | . . Level 2 . | . . Level 3 . | . . Level 4 . | . . Level 5 . | . . High Security . | . . Max Security . | . . Squads Dispatched 2 | . 2 Investigation . | . . Extermination . | . . Reinforcement 2 | . 2 Assault . | . . Garrison . | . . Intercept . | . . Searches Triggered . | . . Construction Impeded . | . . Haulers Reinforced . | . . Active Scanning Responses . | . . Cargo Convoy Interrupts . | . . Stealth | -11 -10 --------- Run | Jun Mat Distress Signals 1 | . 1 Communications Jammed . | . . Distress Signals . | . . Times Spotted 11 | . 11 Peak Tracking Total 6 | . 6 Tactical Retreats 2 | . 2 Traps | -11 -10 ------- Run | Jun Mat Traps Triggered . | . . Indirectly . | . . Trap Hack Attempts . | . . Triggered . | . . Disarmed . | . . Reprogrammed . | . . Reused . | . . Traps Extracted . | . . Installed . | . . Triggered . | . . Machines | -11 -10 ---------- Run | Jun Mat Machines Disabled . | . . Max in Single Turn . | . . Machines Repaired . | . . Machines Sabotaged . | . . Overloaded Fab Kills . | . . Hacking | -11 -10 --------- Run | Jun Mat Machines Accessed 1 | . 1 Terminals 1 | . 1 Fabricators . | . . Repair Stations . | . . Recycling Units . | . . Scanalyzers . | . . Garrison Access . | . . Total Hacks 3 | . 3 Successful 1 | . 1 Failed 2 | . 2 Catastrophic . | . . Database Lockouts . | . . Manual . | . . Terminals 3 | . 3 Fabricators . | . . Repair Stations . | . . Recycling Units . | . . Scanalyzers . | . . Garrison Access . | . . Terminal Hacks 1 | . 1 Zone Layout 1 | . 1 Fabricator Hacks . | . . Repair Station Hacks . | . . Recycling Unit Hacks . | . . Scanalyzer . | . . Garrison Access Hacks . | . . Unauthorized Hacks . | . . Terminals . | . . Fabricators . | . . Repair Stations . | . . Recycling Units . | . . Scanalyzers . | . . Garrison Access . | . . Data Cores Recovered . | . . Used . | . . Hacking Detections 1 | . 1 Full Trace Events . | . . Feedback Events . | . . Feedback Blocked . | . . Robot Schematics Acquired . | . . Robots Built . | . . Authchips . | . . Time . | . . Total Robot Build Rating . | . . Part Schematics Acquired . | . . Parts Built . | . . Authchips . | . . Time . | . . Total Part Build Rating . | . . Parts Repaired . | . . Time . | . . Parts Recycled . | . . Recycled Matter . | . . Retrieved Matter . | . . Retrieved Components . | . . Parts Scanalyzed . | . . Part Schematics Acquired . | . . Parts Damaged . | . . Bothacking | -11 -10 ------------ Run | Jun Mat Used RIF Installer . | . . Robots Hacked . | . . Non-combat . | . . Combat . | . . Robot Hacks Applied . | . . Relay Couplers Released . | . . Fabnet Peak Effective % . | . . Robots Rewired . | . . Allies Hacked . | . . Hacks Repelled . | . . Allies | -11 -10 -------- Run | Jun Mat Total Allies . | . . Largest Group . | . . Highest-Rated Group . | . . Highest-Rated Ally . | . . Total Orders . | . . Ally Attacks . | . . Total Damage . | . . Kills . | . . Allies Corrupted . | . . Allies Melted . | . . Intel | -11 -10 ------- Run | Jun Mat Robot Analysis Total . | . . Derelict Logs Recovered . | . . Drone Launches . | . . Drone Recoveries . | . . Exploration | -11 -10 ------------- Run | Jun Mat Turns Passed 115 | 15 100 Spaces Moved 212 | 24 188 Core 210 | 24 186 Treads . | . . Legs . | . . Wheels . | . . Hover 2 | . 2 Flight . | . . Fastest Speed 50 | 50 50 Average Speed 50 | 50 50 Slowest Speed 60 | 50 60 Overloaded Moves . | . . Propulsion Burnouts . | . . Robots Hopped . | . . Cave-ins Triggered . | . . Exploration Rate (%) 23 | 3 44 Regions Visited 1 Branch Regions . Pre-discovered Areas . | . . Known Exits Taken . | . . Unknown Exits Taken 1 | 1 . Scrap Searched . | . . Spaces Dug . | . . Terrain Destroyed . | . . Melee . | . . Projectile . | . . AOE . | . . Terrain Rammed . | . . Walls Destroyed . | . . Machines Disabled . | . . Actions | -11 -10 --------- Run | Jun Mat Total 219 | 26 193 Wait . | . . Move 211 | 23 188 Hop . | . . Pick Up 1 | . 1 Fast Attach 3 | 1 2 Attach . | . . Detach 1 | 1 . Swap . | . . Drop 1 | 1 . Fire . | . . Melee . | . . Ram 2 | . 2 Kick . | . . Crush . | . . Escape Stasis . | . . Rewire . | . . Trap . | . . Miscellaneous . | . . Route ------- -11/Junkyard -10/Materials (discovered 2 exits: [*Mat] / [Min]) History --------- Turn | Location | Event 8 | -11/Junkyard | Discovered new exit (range 15) 16 | -11/Junkyard | Entered Materials 69 | -10/Materials | Core integrity fell below 50% 76 | -10/Materials | Discovered new exit (range 9) 93 | -10/Materials | Core integrity fell below 20% 108 | -10/Materials | Discovered new exit (range 13) 116 | -10/Materials | Destroyed by S-10 Pest with Light Assault Rifle Last Messages --------------- 00063_ ALERT: Hostiles spotted, dispatching reinforcements to Terminal M004. 00076_ Connecting with Terminal... 00076_ Current location identified: Materials 00076_ EXIT=FOUND >>Layout(Zone) Retrieving Zone 8L layout... Downloaded map data. 00085_ S-10 Pest destroyed. 00104_ Slammed into U-05 Engineer. 00104_ U-05 Engineer knocked back. 00107_ Slammed into U-05 Engineer. 00108_ EXIT=FOUND 00108_ U-05 Engineer destroyed. 00111_ K-01 Serf collects debris. 00112_ Acquired Hover Unit. 00114_ ALERT: Hostiles spotted, dispatching reinforcements to Terminal M003. 00115_ K-01 Serf collects debris. 00116_ Acquired Hover Unit. Map ----- +----------------------------------------------------+ | ?????????????????????????????????########????????? | | ?????????????????????????????????# [#????????? | | ??########???????????????????????# """ #????????? | | ??# #???????????????????????# """ #????????? | | ??# "" ######################### """ ########## | | ??# "T + + + # | | ??# "" #### # # # | | ??# #??# =% ####/### # | | ??# #??# * + | | ??##############+#################### ##### # | | ???????##"""### #??????#####?#+#???# # | | ??????##" "## #??????# #???????# #####+ | | ??????#"" ""# #??????# < #???????# ##### | | ??????# # #??????# #???????# | | ??????# < ##########??????+ +???????# ###### | | ??????# # ?????????# #???????# # T | | ??????# # ?????????# #???????# # | | ??????## ## ?????????# #???????# + | | ???????## ### ?????????# #???????# # ! | | ????????# #?# ?????????# =#???????# # | | ????????# #?# ?????????# !%#???????# #? | | ??????????????????????????????# =#???????# #??### | | ??????????????????????????????# ######### ####?? | | ?????????????##+###############u s #?? | | ?????????? k ^ !! = ######### #?? | | ?????????? !! @ #???????# #?? | | ??????????! o ^ !! w""" #???????# #?? | | ???????????? ## """ #???????# #?? | | ??????????????# g""" #???????# #?? | | ???????????? /a a #???????# ?? | | ???????????? # ! #???????# ##+##? | | ??????????????# #???????? ?????? | | ??????????????################# #????????+?????? | | ??????????????????????????????# #??????????????? | | ??????????????????????????????# #??????????????? | | ??????????????????????????????+ +??????????????? | | ??????????????????????????????# # ?????????????? | | ??????????????????????????????# # ?????????????? | | ??????????????????????????????# ???????????????? | | ??????????????????????????????? ???????????????? | | ?????????????????????????????????????????????????? | | ?????????????????????????????????????????????????? | | ?????????????????????????????????????????????????? | | ?????????????????????????????????????????????????? | | ?????????????????????????????????????????????????? | | ?????????????????????????????????????????????????? | | ?????????????????????????????????????????????????? | | ?????????????????????????????????????????????????? | | ?????????????????????????????????????????????????? | | ?????????????????????????????????????????????????? | +----------------------------------------------------+ Best States ------------- Heat Dissipation 25 Energy Generation 5 Energy Capacity 100 Matter Stores 192 Matter Capacity 300 Sight Range 16 Terrain Scan Density 10 Evasion (%) 50 Item Schematics ----------------- None Robot Schematics ------------------ None Fabricated ------------ Nothing Alien Tech Used ----------------- None Achievements -------------- None Challenges ------------ None Game ------ Seed EtherialMeleeStick Manual? 0 Play Time 00:04:44 Cumulative 195.7 hours Start 2023.03.29 @ 09:52:56 End 2023.03.29 @ 09:55:37 Sessions 1 Manual Loads 0 Difficulty Rogue Special Mode None Game No. 76 Rogue 60 Adventurer 8 Explorer 8 Win Type - Total 13 Types 7/0/3/1/1/1/0/0/0 Lore% 84 Gallery% 78 Achievement% 72 Wizard Run 0 Options --------- ASCII 1 Keyboard 1 Movement Vi Keybinds 0 Fullscreen 1 Font 18/CogWide Map View 76x50 Tactical HUD 1 Map Filters NONE Filters NONE Steam X RUN: 671401de-e1fb-4144-a5c9-87774f74773f